bitfinex-derivatives/quotes_ETHF0:USTF0_20240904
["timestamp","ask_amount","ask_price","bid_price","bid_amount"]
[1725443641017,0.41739,2396.2,2396.1,0.41739]
[1725443641412,0.41739,2396.2,2396.0,1.17001]
[1725443642217,0.41739,2396.2,2396.1,0.4174]
[1725443642715,0.41739,2396.2,2396.0,1.17001]
[1725443643309,0.41739,2396.2,2396.1,0.4174]
[1725443643710,0.41738,2396.3,2396.1,0.4174]
[1725443643912,0.41739,2396.2,2396.1,0.4174]
[1725443644918,1.04338,2396.4,2396.0,0.7526]
[1725443644919,0.4174,2396.1,2396.0,1.17001]
[1725443645115,0.4174,2396.1,2396.0,0.7526]
[1725443647114,0.4174,2396.1,2396.0,1.17002]
[1725443647309,0.54225771,2396.1,2396.0,1.17002]
[1725443647511,0.54225771,2396.1,2396.0,0.7526]
[1725443647737,0.4174,2396.1,2396.0,1.17002]
[1725443648119,4.1736,2396.1,2395.8,0.41745]
[1725443648442,0.41744,2395.9,2395.6,3.2078]
[1725443648717,1.40637,2396.0,2395.6,3.2078]
[1725443648914,0.41747,2395.7,2395.6,3.2078]
[1725443649122,0.41747,2395.7,2395.5,0.78071]
[1725443649619,0.78657,2395.8,2395.5,0.78071]
[1725443649808,3.2428,2396.0,2395.5,0.3632]
[1725443649809,0.3628,2396.0,2395.5,0.3632]
[1725443650012,2.88,2396.2,2395.6,3.2078]
[1725443650013,0.3691,2396.2,2395.6,3.2078]
[1725443650220,0.41744,2395.9,2395.7,0.41747]
[1725443655721,1.79469,2396.2,2395.6,3.2078]
[1725443655722,0.41743,2396.0,2395.8,0.41745]
[1725443656022,1.79469,2396.2,2395.8,0.41745]
[1725443656023,0.12480246,2395.9,2395.8,0.41745]
[1725443656221,0.41742,2396.1,2395.9,0.41743]
[1725443656526,0.4174,2396.1,2396.0,0.3794]
[1725443656823,0.5421754,2396.1,2396.0,0.3794]
[1725443658124,0.5421754,2396.1,2395.9,0.41743]
[1725443658429,1.1683054,2396.1,2395.7,0.79686]
[1725443658627,0.41744,2395.9,2395.7,0.79686]
[1725443659223,0.41742,2396.0,2395.8,0.41744]
[1725443659422,0.41745,2395.9,2395.7,0.79687]
[1725443659724,0.12481234,2395.9,2395.8,0.41745]
[1725443660023,0.41743,2396.0,2395.9,0.41744]
[1725443660222,0.54224812,2396.0,2395.8,0.41744]
[1725443660431,0.41745,2395.8,2395.7,0.79687]
[1725443660626,0.54226812,2395.8,2395.7,0.3794]
[1725443660827,0.12481812,2395.8,2395.6,3.2078]
[1725443661024,0.54228812,2395.7,2395.6,3.2078]
[1725443661232,0.41747,2395.8,2395.6,3.2078]
[1725443661431,0.12483573,2395.7,2395.6,3.62529]
[1725443661735,0.41749,2395.6,2395.4,0.80701]
[1725443661939,0.91811573,2395.7,2395.4,0.80701]
[1725443662127,0.3758,2395.7,2395.2,4.71666702]
[1725443662323,0.41752,2395.5,2395.2,4.00445]
[1725443662529,0.12482294,2395.4,2395.2,4.00445]
[1725443662728,0.41752,2395.5,2395.2,3.5869]
[1725443662923,0.1248272,2395.4,2395.2,3.5869]
[1725443663129,0.41752,2395.5,2395.2,3.5869]
[1725443663434,0.41752,2395.5,2395.2,4.00446]
[1725443663930,0.12481853,2395.4,2395.2,4.00446]
[1725443664139,0.41751,2395.5,2395.2,4.00446]
[1725443664435,0.12481904,2395.4,2395.2,4.00446]
[1725443664734,0.41751,2395.5,2395.2,4.00446]
[1725443664930,0.12482472,2395.4,2395.2,4.00446]
[1725443665132,0.12482199,2395.4,2395.2,4.00446]
[1725443665537,0.41751,2395.5,2395.2,4.00446]
[1725443665732,0.12482215,2395.4,2395.2,4.00446]
[1725443665936,0.41751,2395.5,2395.2,3.5869]
[1725443666139,0.12481838,2395.4,2395.2,3.5869]
[1725443666347,0.41753,2395.4,2395.2,3.5869]
[1725443666843,0.41752,2395.5,2395.2,3.5869]
[1725443667643,0.41752,2395.4,2395.2,3.9788]
[1725443667841,3.9536,2395.7,2395.2,3.9788]
[1725443667842,0.41754,2395.3,2395.2,3.9788]
[1725443669643,0.41754,2395.4,2395.2,3.9788]
[1725443669836,0.41754,2395.3,2395.2,3.9788]
[1725443670038,0.41753,2395.4,2395.2,3.9788]
[1725443670235,0.41754,2395.3,2395.2,3.9788]
[1725443670937,0.41753,2395.4,2395.2,8.154]
[1725443672940,0.00625821,2395.5,2395.4,0.41752]
[1725443673335,0.00625821,2395.5,2395.4,4.59192]
[1725443673539,0.42376821,2395.5,2395.4,4.1744]
[1725443673738,0.00625821,2395.5,2395.4,4.59192]
[1725443674147,0.00625821,2395.5,2395.4,4.1744]
[1725443674341,0.42377821,2395.5,2395.4,4.1744]
[1725443674739,0.00625821,2395.5,2395.3,0.41754]
[1725443675141,0.00625821,2395.5,2395.3,4.59194]
[1725443675943,0.00625821,2395.5,2395.4,4.1744]
[1725443676147,0.00625821,2395.5,2395.4,0.41752]
[1725443676352,0.00625821,2395.5,2395.4,4.95772]
[1725443677447,0.00625821,2395.5,2395.4,0.3658]
[1725443678339,0.42376821,2395.5,2395.4,0.3658]
[1725443678748,0.00625821,2395.5,2395.4,0.78332]
[1725443679737,0.00625821,2395.5,2395.2,3.9788]
[1725443679951,0.41753,2395.4,2395.3,0.3579]
[1725443680439,0.41753,2395.4,2395.3,4.5323]
[1725443680650,0.42377821,2395.5,2395.3,4.94984]
[1725443680855,0.00625821,2395.5,2395.4,0.41752]
[1725443681652,0.00625821,2395.5,2395.4,4.59192]
[1725443682564,0.00625821,2395.5,2395.4,5.79192]
[1725443683763,0.42376821,2395.5,2395.4,4.59192]
[1725443684554,0.00625821,2395.5,2395.4,4.59192]
[1725443687464,0.42376821,2395.5,2395.4,4.59192]
[1725443688066,0.00625821,2395.5,2395.4,4.59192]
[1725443688661,0.00625821,2395.5,2395.4,0.41752]
[1725443695061,0.00625821,2395.5,2395.4,12.83574]
[1725443695664,0.41744,2395.9,2395.8,0.41745]
[1725443695862,0.12484452,2395.9,2395.8,0.41745]
[1725443696266,0.54228452,2395.9,2395.8,0.41745]
[1725443696470,0.12484452,2395.9,2395.8,0.41745]
[1725443696975,0.54228452,2395.9,2395.8,0.41745]
[1725443697364,0.12484452,2395.9,2395.8,0.41745]
[1725443697771,0.54228452,2395.9,2395.8,0.41745]
[1725443698173,0.12484452,2395.9,2395.8,0.41745]
[1725443698364,0.3749,2396.0,2395.9,0.41744]
[1725443698673,0.79232,2396.0,2395.9,0.41744]
[1725443698871,0.91716469,2396.0,2395.9,0.41744]
[1725443699577,1.04200764,2396.0,2395.9,0.41744]
[1725443699774,0.41744,2395.9,2395.8,1.61744]
[1725443699967,0.49974469,2396.0,2395.8,1.2]
[1725443700169,0.41744,2395.9,2395.8,1.61744]
[1725443700674,0.91717469,2396.0,2395.9,0.41744]
[1725443700876,0.49974469,2396.0,2395.9,0.41744]
[1725443701182,0.54226469,2396.0,2395.9,0.41744]
[1725443701471,0.12484469,2396.0,2395.9,0.41744]
[1725443701876,0.24969082,2396.0,2395.9,0.41744]
[1725443702172,0.54226469,2396.0,2395.9,0.41744]
[1725443702367,0.41745,2395.8,2395.7,1.51436]
[1725443702574,0.41745,2395.9,2395.8,0.41745]
[1725443703076,0.41745,2395.9,2395.8,4.59105]
[1725443703274,0.54227469,2396.0,2395.9,0.41744]
[1725443703474,0.41744,2395.9,2395.8,0.41744]
[1725443703975,0.41744,2395.9,2395.8,4.59104]
[1725443704179,0.54228469,2396.0,2395.8,4.59105]
[1725443704373,0.41744,2395.9,2395.8,0.41745]
[1725443704579,0.54227469,2396.0,2395.8,0.41745]
[1725443705076,0.54227469,2396.0,2395.9,0.41744]
[1725443705270,0.66710486,2396.0,2395.8,1.61744]
[1725443705473,0.41744,2395.9,2395.8,1.61744]
[1725443705676,0.54227469,2396.0,2395.9,0.41744]
[1725443705979,0.12484469,2396.0,2395.9,1.61744]
[1725443706279,0.12484469,2396.0,2395.9,4.82524]
[1725443706971,0.42365821,2396.1,2396.0,0.41742]
[1725443708475,0.1311154,2396.1,2396.0,0.41742]
[1725443709475,0.41742,2396.0,2395.9,4.82522]
[1725443709673,0.1311154,2396.1,2395.9,4.4078]
[1725443709876,0.41742,2396.0,2395.9,4.82523]
[1725443710075,0.41742,2396.0,2395.9,4.4078]
[1725443710281,0.5485354,2396.1,2396.0,0.41742]
[1725443711785,0.1311154,2396.1,2396.0,0.41742]
[1725443713288,0.1311154,2396.1,2396.0,5.63458]
[1725443713486,0.77533,2396.6,2396.5,0.41733]
[1725443713778,7.38757456,2396.7,2396.6,0.41732]
[1725443713779,0.77321,2396.7,2396.6,0.41732]
[1725443714175,0.77321,2396.7,2396.6,1.61732]
[1725443714983,0.36425821,2396.9,2396.6,1.61732]
[1725443715178,0.36425821,2396.9,2396.7,0.78259]
[1725443715582,0.41728,2396.8,2396.7,0.78259]
[1725443716184,0.78152821,2396.9,2396.8,0.41728]
[1725443716386,0.00625821,2396.9,2396.8,0.41728]
[1725443716681,0.00625821,2396.9,2396.8,4.58928]
[1725443717184,3.2078,2397.7,2396.9,1.04315]
[1725443717388,3.2078,2397.7,2397.4,0.41717]
[1725443717389,0.41715,2397.6,2397.4,0.41717]
[1725443717585,0.41716,2397.5,2397.4,0.41717]
[1725443717783,0.41715,2397.6,2397.4,0.41717]
[1725443717990,0.41716,2397.5,2397.4,0.41717]
[1725443718680,0.74985821,2397.7,2397.4,0.41717]
[1725443718888,1.16699821,2397.7,2397.5,0.41716]
[1725443719076,1.16699821,2397.7,2397.6,1.61714]
[1725443719077,0.74985821,2397.7,2397.6,1.61714]
[1725443719285,5.33737821,2397.7,2397.6,1.61714]
[1725443719486,1.16697821,2397.7,2397.6,1.61714]
[1725443719684,1.16697821,2397.7,2397.6,1.2]
[1725443720084,0.74985821,2397.7,2397.6,1.61714]
[1725443720283,1.16697821,2397.7,2397.6,1.2]
[1725443721387,0.00625821,2397.7,2397.6,1.61714]
[1725443721793,0.41701,2398.4,2397.6,14.5782]
[1725443722086,0.41701,2398.4,2398.0,1.2]
[1725443722087,0.41702,2398.3,2398.0,1.2]
[1725443724186,0.41702,2398.3,2397.9,6.51113821]
[1725443724689,0.78716821,2398.4,2398.0,0.41707]
[1725443724893,0.41702,2398.3,2398.0,0.41707]
[1725443725195,0.41702,2398.3,2397.9,6.51113821]
[1725443725384,0.41704,2398.2,2397.9,6.51113821]
[1725443725584,0.37015821,2398.4,2397.9,6.51113821]
[1725443725785,0.41703,2398.3,2397.9,6.51113821]
[1725443726185,0.37015821,2398.4,2397.9,3.21405821]
[1725443726384,0.41707,2398.0,2397.9,0.00625821]
[1725443726893,4.58747,2398.0,2397.9,0.00625821]
[1725443728482,4.96117,2398.0,2397.9,0.00625821]
[1725443729994,5.33077,2398.0,2397.9,0.00625821]
[1725443733493,0.41707,2398.0,2397.9,0.00625821]
[1725443737599,1.45976,2398.0,2397.9,0.00625821]
[1725443741201,0.41707,2398.0,2397.9,0.00625821]
[1725443744407,0.41707,2398.1,2397.9,0.42333821]
[1725443744902,0.41707,2398.0,2397.9,0.00625821]
[1725443747798,4.25658821,2398.4,2398.0,0.41706]
[1725443748109,0.41704,2398.2,2398.1,0.3678]
[1725443748402,4.25658821,2398.4,2398.1,0.3678]
[1725443748403,3.63107821,2398.4,2398.2,0.41702]
[1725443748592,0.42327821,2398.4,2398.3,0.7606]
[1725443751207,1.46578821,2398.4,2398.3,0.7606]
[1725443751806,0.41704,2398.2,2398.1,0.3678]
[1725443752011,1.45964,2398.2,2398.1,0.3678]
[1725443752608,0.41704,2398.2,2398.1,0.3678]
[1725443752913,4.25659821,2398.4,2398.1,1.5678]
[1725443752914,0.41703,2398.3,2398.1,1.5678]
[1725443753115,0.41703,2398.3,2398.1,1.98484]
[1725443753919,0.41704,2398.2,2398.1,1.98484]
[1725443756612,0.41704,2398.2,2398.1,0.3678]
[1725443757217,0.41707,2398.0,2397.9,0.00625821]
[1725443757512,1.45976,2398.0,2397.9,0.00625821]
[1725443759616,12.76065,2398.0,2397.9,0.00625821]
[1725443759828,13.14905,2398.0,2397.9,0.00625821]
[1725443760421,10.26905,2398.0,2397.9,0.00625821]
[1725443760623,8.83796,2398.0,2397.9,0.00625821]
[1725443762718,5.63016,2398.0,2397.9,0.00625821]
[1725443763921,6.67285,2398.0,2397.9,0.00625821]
[1725443764127,1.46,2397.6,2397.5,0.097]
[1725443764324,0.41716,2397.5,2397.4,3.9588]
[1725443767526,0.41716,2397.5,2397.4,4.37598]
[1725443768118,0.41716,2397.5,2397.4,3.9588]
[1725443770125,0.41716,2397.5,2397.4,0.751]
[1725443772933,0.41716,2397.5,2397.4,1.16818]
[1725443774037,0.41716,2397.5,2397.4,0.751]
[1725443774337,0.41716,2397.5,2397.4,1.16818]
[1725443774632,0.41715,2397.6,2397.5,0.41715]
[1725443775033,0.79164,2397.7,2397.6,0.41714]
[1725443775232,0.79164,2397.7,2397.4,0.751]
[1725443775233,0.41712,2397.8,2397.7,0.41712]
[1725443776838,0.41712,2397.7,2397.6,0.80973]
[1725443777830,0.41712,2397.8,2397.7,0.41712]
[1725443781128,4.117,2398.0,2397.7,4.1704]
[1725443781332,0.41708,2398.0,2397.9,0.41708]
[1725443781535,0.41706,2398.1,2397.8,1.9564]
[1725443781731,0.41705,2398.2,2398.1,0.41705]
[1725443781934,0.41705,2398.2,2398.0,1.61706]
[1725443782129,0.41705,2398.2,2397.8,0.7564]
[1725443782130,0.41705,2398.2,2398.1,0.3663]
[1725443788839,0.41709,2397.9,2397.8,0.7564]
[1725443793243,0.41709,2397.9,2397.7,5.18422]
[1725443793441,1.46006,2397.5,2397.4,0.097]
[1725443793751,1.46006,2397.5,2397.2,1.09757523]
[1725443793752,1.46018,2397.3,2397.2,0.00625821]
[1725443794048,2.66018,2397.3,2397.2,0.00625821]
[1725443794344,6.83138,2397.3,2397.2,0.00625821]
[1725443795942,5.63138,2397.3,2397.2,0.00625821]
[1725443802751,8.83918,2397.3,2397.2,0.00625821]
[1725443805840,5.63138,2397.3,2397.2,0.00625821]
[1725443806044,8.83918,2397.3,2397.2,0.00625821]
[1725443807252,4.25067,2397.6,2397.2,0.00625821]
[1725443807557,4.25067,2397.6,2397.2,0.42346821]
[1725443807558,0.41718,2397.4,2397.2,0.42346821]
[1725443807758,0.41718,2397.4,2397.3,0.74]
[1725443807947,0.41718,2397.4,2397.3,1.1296]
[1725443810360,1.40127,2397.6,2397.3,1.1296]
[1725443810553,0.41718,2397.4,2397.3,1.1296]
[1725443811352,0.41717,2397.5,2397.3,1.54679]
[1725443811661,0.41715,2397.6,2397.4,0.41718]
[1725443811862,0.41716,2397.5,2397.3,1.54679]
[1725443812666,0.41718,2397.4,2397.3,1.1296]
[1725443818355,0.41726,2396.9,2396.8,0.097]
[1725443818555,0.41726,2396.9,2396.8,0.3829]
[1725443820070,1.46043,2396.9,2396.8,0.3829]
[1725443822669,0.41726,2396.9,2396.8,0.3829]
[1725443825763,0.41726,2397.0,2396.8,0.3829]
[1725443826065,0.41726,2396.9,2396.8,0.3829]
[1725443831559,0.00625821,2397.1,2397.0,0.41725]
[1725443831755,0.00625821,2397.1,2397.0,1.61725]
[1725443831962,0.00625821,2397.1,2397.0,5.78925]
[1725443833167,0.00625821,2397.1,2396.8,0.3829]
[1725443833367,0.41726,2396.9,2396.8,0.3829]
[1725443837272,0.41728,2396.8,2396.7,0.7548]
[1725443837775,0.41728,2396.8,2396.7,1.1721]
[1725443838072,0.41728,2396.8,2396.7,0.7548]
[1725443838666,0.4173,2396.7,2396.6,0.37605821]
[1725443838980,2.17695,2396.7,2396.6,0.00625821]
[1725443839273,8.593,2396.7,2396.6,0.00625821]
[1725443839964,1.46086,2396.2,2396.1,0.3693]
[1725443840159,1.46086,2396.2,2395.9,0.112]
[1725443840160,0.41742,2396.0,2395.9,0.768]
[1725443840364,0.41739,2396.2,2395.9,0.768]
[1725443840571,0.41739,2396.2,2396.0,0.41741]
[1725443841576,0.41739,2396.2,2395.9,1.19168821]
[1725443841770,0.4174,2396.1,2395.9,1.19168821]
[1725443844178,0.4174,2396.2,2396.0,0.41742]
[1725443844576,0.41737,2396.3,2396.1,0.4174]
[1725443844769,0.41739,2396.2,2396.1,0.4174]
[1725443844969,0.41739,2396.2,2396.0,0.41741]
[1725443845373,1.0434,2396.4,2395.9,0.77425821]
[1725443845581,0.41742,2396.0,2395.9,0.77425821]
[1725443847474,0.41741,2396.1,2395.9,1.19169821]
[1725443848568,0.4174,2396.2,2396.0,0.41742]
[1725443848772,0.4174,2396.1,2395.9,1.19167821]
[1725443848976,0.41741,2396.1,2395.9,1.19167821]
[1725443849381,1.04343,2396.3,2395.9,0.77425821]
[1725443849685,0.41741,2396.1,2395.9,1.19167821]
[1725443850682,0.4174,2396.2,2396.0,0.41742]
[1725443851280,0.4174,2396.1,2396.0,0.41742]
[1725443851678,0.4174,2396.2,2396.0,0.41742]
[1725443853977,0.41732,2396.6,2396.5,0.41733]
[1725443854182,4.117,2396.8,2396.6,0.41732]
[1725443854487,0.4173,2396.7,2396.6,0.41732]
[1725443854676,0.4173,2396.7,2396.4,2.89]
[1725443854884,0.41729,2396.8,2396.7,0.41729]
[1725443855187,0.41728,2396.9,2396.8,0.41728]
[1725443855384,0.41728,2396.9,2396.4,7.14117]
[1725443855588,0.41728,2396.8,2396.4,7.14117]
[1725443855885,0.41728,2396.9,2396.7,0.41728]
[1725443856093,0.41728,2396.9,2396.8,0.41728]
[1725443856389,0.41728,2396.8,2396.7,0.41729]
[1725443856999,0.41728,2396.8,2396.4,6.0978]
[1725443857891,0.41728,2396.8,2396.7,0.4173]
[1725443858199,0.41732,2396.6,2396.5,0.41732]
[1725443858589,0.41732,2396.6,2396.5,4.59012]
[1725443860011,0.41732,2396.6,2396.5,4.1728]
[1725443860692,0.41732,2396.6,2396.5,4.59013]
[1725443862095,0.41733,2396.5,2396.4,4.82514]
[1725443863299,0.41733,2396.6,2396.5,0.41733]
[1725443864104,0.41733,2396.5,2396.4,4.82514]
[1725443864602,1.2,2396.6,2396.1,3.2078]
[1725443864798,1.2,2396.6,2396.2,0.41738]
[1725443864799,0.41738,2396.3,2396.2,0.41738]
[1725443865206,2.50454,2396.0,2395.9,8.21e-06]
[1725443865507,3.2078,2396.0,2395.9,8.21e-06]
[1725443865698,2.24333,2396.6,2395.9,1.20000821]
[1725443865907,0.41742,2396.0,2395.9,8.21e-06]
[1725443867708,5.79102,2396.0,2395.9,8.21e-06]
[1725443869908,4.59102,2396.0,2395.9,8.21e-06]
[1725443870407,8.52458,2396.0,2395.9,8.21e-06]
[1725443871209,14.73772576,2396.0,2395.9,8.21e-06]
[1725443871603,15.78128576,2396.0,2395.9,8.21e-06]
[1725443875903,15.78128576,2396.0,2395.3,0.097]
[1725443875904,1.46134,2395.4,2395.3,0.097]
[1725443876104,1.46134,2395.4,2395.1,0.3732]
[1725443876105,3.93382,2395.4,2395.1,0.3732]
[1725443876413,3.2078,2395.5,2394.7,0.097]
[1725443876414,0.41762,2394.9,2394.7,0.097]
[1725443876708,0.41759,2395.1,2394.7,1.1419]
[1725443876908,0.42385821,2395.0,2394.7,1.55954]
[1725443877107,0.00625821,2395.0,2394.9,0.41761]
[1725443877301,0.00625821,2395.0,2394.8,0.41762]
[1725443878709,0.00625821,2395.0,2394.7,1.1419]
[1725443879013,0.42385821,2395.0,2394.7,1.55953]
[1725443879513,0.41761,2394.9,2394.7,1.55953]
[1725443880315,0.42385821,2395.0,2394.8,0.41761]
[1725443880515,0.00625821,2395.0,2394.9,0.41761]
[1725443881211,0.00625821,2395.0,2394.8,0.41762]
[1725443881413,0.00625821,2395.0,2394.9,0.41761]
[1725443885711,0.00625821,2395.0,2394.9,3.62541]
[1725443885916,0.00625821,2395.0,2394.9,8.84465]
[1725443886119,4.117,2395.4,2395.3,0.41754]
[1725443886413,2.987,2395.7,2395.2,0.41755]
[1725443886414,4.31821,2395.7,2395.2,0.41755]
[1725443886625,4.31821,2395.7,2395.3,0.7481]
[1725443886919,0.41747,2395.7,2395.6,0.41747]
[1725443887117,0.41746,2395.8,2395.6,0.41747]
[1725443887512,0.41746,2395.8,2395.7,0.358]
[1725443888619,0.41746,2395.8,2395.7,0.77547]
[1725443889013,0.00625821,2395.9,2395.8,0.41745]
[1725443889211,0.42369821,2395.9,2395.8,0.3771]
[1725443889514,0.00625821,2395.9,2395.8,0.79455]
[1725443889720,0.42369821,2395.9,2395.8,0.79455]
[1725443890015,0.41745,2395.8,2395.7,0.358]
[1725443890618,1.04364,2395.8,2395.5,0.7497]
[1725443890822,3.25095821,2395.9,2395.5,1.16721]
[1725443890823,0.41749,2395.6,2395.5,1.16721]
[1725443891013,0.41749,2395.6,2395.5,0.7497]
[1725443892117,0.41751,2395.5,2395.4,0.3717]
[1725443899730,0.41752,2395.5,2395.3,3.62534]
[1725443900033,0.41752,2395.5,2395.4,0.3815]
[1725443900831,0.4175,2395.6,2395.4,0.79902]
[1725443901036,0.41751,2395.5,2395.4,0.79902]
[1725443901224,0.4175,2395.6,2395.4,0.79902]
[1725443901731,0.4175,2395.6,2395.5,0.41751]
[1725443902428,0.41748,2395.7,2395.6,0.41748]
[1725443903229,0.00625821,2395.9,2395.4,0.3815]
[1725443903425,0.00625821,2395.9,2395.8,0.41745]
[1725443904326,0.42369821,2395.9,2395.8,0.3798]
[1725443905932,0.00625821,2395.9,2395.8,0.79725]
[1725443907026,0.42369821,2395.9,2395.8,0.3798]
[1725443908033,0.00625821,2395.9,2395.8,0.79725]
[1725443918733,0.42369821,2395.9,2395.8,0.79725]
[1725443922444,0.00625821,2395.9,2395.8,0.79725]
[1725443923445,0.42369821,2395.9,2395.8,0.79725]
[1725443924542,0.42369821,2395.9,2395.8,0.41745]
[1725443925039,0.42369821,2395.9,2395.8,0.80345]
[1725443926147,0.00625821,2395.9,2395.8,0.80345]
[1725443928046,0.00625821,2395.9,2395.8,1.84709]
[1725443928248,0.00625821,2395.9,2395.8,0.80345]
[1725443931245,0.00625821,2395.9,2395.8,1.84709]
[1725443932952,0.00625821,2395.9,2395.8,0.80345]
[1725443939854,0.00625821,2395.9,2395.8,1.84709]
[1725443940059,0.00625821,2395.9,2395.8,7.22069]
[1725443940849,0.00625821,2395.9,2395.8,8.26433]
[1725443942256,0.00625821,2395.9,2395.8,6.17705]
[1725443943856,0.00625821,2395.9,2395.8,2.00345]
[1725443945661,0.00625821,2395.9,2395.8,5.21125]
[1725443945858,0.41738,2396.3,2396.2,0.41739]
[1725443946062,0.41738,2396.3,2395.7,2.52689702]
[1725443946063,1.5552,2396.3,2395.7,1.48321702]
[1725443946263,0.4175,2395.6,2395.4,0.51452]
[1725443946569,0.41748,2395.7,2395.5,0.4175]
[1725443946757,0.41747,2395.8,2395.5,0.4175]
[1725443947067,0.41747,2395.7,2395.5,0.4175]
[1725443949465,0.41747,2395.7,2395.0,3.33859242]
[1725443949466,0.41758,2395.1,2395.0,1.74897553]
[1725443949664,0.41759,2395.0,2394.9,0.00625821]
[1725443952664,1.05759,2395.0,2394.9,0.00625821]
[1725443958073,0.79629,2395.0,2394.9,0.00625821]
[1725443959070,6.01548,2395.0,2394.9,0.00625821]
[1725443959277,8.90548,2395.0,2394.9,0.00625821]
[1725443959467,0.4177,2394.4,2394.3,0.097]
[1725443959666,0.4177,2394.4,2394.2,0.3809]
[1725443961380,0.41772,2394.3,2394.2,0.3809]
[1725443962274,0.41771,2394.4,2394.2,0.3809]
[1725443962881,0.41772,2394.3,2394.2,0.3809]
[1725443963075,0.41772,2394.3,2394.1,0.00625821]
[1725443963286,3.30771,2394.4,2394.1,0.00625821]
[1725443963581,3.3077,2394.4,2394.1,0.42400821]
[1725443963878,3.3077,2394.4,2394.1,0.36555821]
[1725443963879,0.41772,2394.3,2394.1,0.36555821]
[1725443964075,3.30771,2394.4,2394.2,0.362]
[1725443964378,3.30771,2394.4,2394.3,0.367]
[1725443965275,0.41773,2394.3,2394.1,0.36555821]
[1725443967075,0.41772,2394.3,2394.1,0.36555821]
[1725443967477,2.89,2394.4,2394.1,0.36555821]
[1725443967478,0.41773,2394.2,2394.1,0.36555821]
[1725443968177,3.30773,2394.2,2394.1,0.00625821]
[1725443968574,0.41773,2394.2,2394.1,0.00625821]
[1725443969387,10.69233,2394.2,2394.1,0.00625821]
[1725443969589,7.80233,2394.2,2394.1,0.00625821]
[1725443969878,7.3846,2394.2,2394.1,0.00625821]
[1725443970084,3.2078,2394.2,2394.1,0.00625821]
[1725443970271,3.21405821,2394.5,2394.3,0.41771]
[1725443970474,3.63173821,2394.5,2394.4,1.1467]
[1725443970975,3.21405821,2394.5,2394.4,1.1467]
[1725443971178,3.63173821,2394.5,2394.4,1.1467]
[1725443971687,6.52173821,2394.5,2394.4,1.1467]
[1725443972679,6.52173821,2394.5,2394.4,0.3738]
[1725443972680,10.69773821,2394.5,2394.4,0.3738]
[1725443973189,6.52173821,2394.5,2394.4,0.3738]
[1725443974088,10.69773821,2394.5,2394.4,0.3738]
[1725443974288,6.52173821,2394.5,2394.4,0.3738]
[1725443974890,3.63173821,2394.5,2394.4,0.3738]
[1725443975193,6.52173821,2394.5,2394.4,0.3738]
[1725443975789,1.46207,2394.2,2394.1,0.00625821]
[1725443975983,5.86987,2394.2,2394.1,0.00625821]
[1725443976178,10.04667,2394.2,2394.1,0.00625821]
[1725443976577,9.00233,2394.2,2394.1,0.00625821]
[1725443976785,3.2078,2394.2,2394.1,0.00625821]
[1725443977092,3.62553,2394.2,2394.1,0.00625821]
[1725443980491,0.00625821,2394.5,2394.1,10.18305821]
[1725443980492,3.63174821,2394.5,2394.1,10.18305821]
[1725443980684,3.63174821,2394.5,2394.1,0.00625821]
[1725443980883,0.00625821,2394.5,2394.3,0.4177]
[1725443981196,0.00625821,2394.5,2394.4,1.1182]
[1725443981693,0.00625821,2394.5,2394.4,5.2942]
[1725443982189,0.00625821,2394.5,2394.4,1.1182]
[1725443982390,0.00625821,2394.5,2394.3,0.41771]
[1725443982391,0.41773,2394.2,2394.1,0.00625821]
[1725443982587,0.41773,2394.2,2394.1,0.75905821]
[1725443982588,3.62553,2394.2,2394.1,0.75905821]
[1725443982883,0.41773,2394.2,2394.1,0.75905821]
[1725443983282,0.41773,2394.3,2394.1,0.75905821]
[1725443983688,0.41772,2394.3,2394.1,0.75905821]
[1725443983890,0.41773,2394.2,2394.1,0.75905821]
[1725443984190,0.41773,2394.3,2394.1,0.75905821]
[1725443984388,3.21405821,2394.5,2394.1,0.75905821]
[1725443984584,0.41771,2394.4,2394.1,1.17679821]
[1725443985082,4.1768,2394.4,2394.1,0.00625821]
[1725443985293,4.25215,2394.2,2393.1,1.1113]
[1725443985492,3.62562,2393.7,2393.6,0.3657]
[1725443985683,3.2078,2394.0,2393.6,0.3657]
[1725443985889,3.62557,2394.0,2393.7,0.7594]
[1725443986794,3.2078,2394.0,2393.7,0.7594]
[1725443987291,3.62557,2394.0,2393.7,0.7594]
[1725443988291,3.2078,2394.0,2393.7,0.7594]
[1725443988486,3.62557,2394.0,2393.7,0.7594]
[1725443992195,3.2078,2394.0,2393.7,0.7594]
[1725443992493,0.41779,2393.9,2393.7,0.7594]
[1725443993591,6.51558,2394.0,2393.7,0.7594]
[1725443993986,0.41779,2393.9,2393.7,0.7594]
[1725443994288,0.4178,2393.8,2393.7,0.7594]
[1725443994489,6.0978,2394.0,2393.7,0.7594]
[1725443994684,0.41779,2393.9,2393.7,0.7594]
[1725443994892,0.4178,2393.8,2393.7,0.7594]
[1725443996500,3.62558,2394.0,2393.7,0.7594]
[1725443996891,3.62557,2394.0,2393.7,0.7594]
[1725443997196,3.2078,2394.0,2393.8,0.4178]
[1725443997389,3.2078,2394.0,2393.7,0.7594]
[1725443997701,0.41776,2394.1,2393.8,0.4178]
[1725443997889,2.89,2394.2,2393.8,0.4178]
[1725443998089,0.41776,2394.1,2393.8,0.4178]
[1725443998286,6.0978,2394.3,2393.8,0.4178]
[1725443998506,0.41776,2394.1,2393.8,0.4178]
[1725443998999,0.41775,2394.2,2393.8,0.4178]
[1725443999189,0.41775,2394.2,2393.9,0.41778]
[1725443999390,0.41775,2394.2,2394.0,0.3835]
[1725443999589,0.41775,2394.2,2394.1,0.3638]
[1725443999796,6.51553,2394.3,2394.1,0.7311]
[1725443999995,0.41773,2394.2,2394.1,0.7311]
[1725444000603,6.0978,2394.3,2394.1,0.7311]